Cogmind - Beta 14 @@@ ROGUE MODE // 2025.03.03 @ 16:16:58 Player: REN Result: Destroyed by G-34 Mercenary with Small Laser Performance ------------- Evolutions (0) 0 Regions Visited (1) 200 Robots Destroyed (6) 30 Value Destroyed (157) 157 Prototype IDs (2) 40 Alien Tech Used (0) 0 Bonus (0) 0 TOTAL SCORE: 427 Bonus ------- None Cogmind --------- Core Integrity 0/250 Matter 300/300 Energy 71/100 System Corruption 0% Temperature Cool (8) Movement Walking (120) Location -10/Materials Parts ------- > --- POWER (1) -------- (None) > --- PROPULSION (2) --- Aluminum Leg Aluminum Leg > --- UTILITY (2) ------ Improved Terrain Scanner > --- WEAPON (2) ------- (None) > --- INVENTORY (5) ---- Flight Unit Small Laser Peak State ------------ > --- POWER ------------ Light Ion Engine > --- PROPULSION ------- Wheel Wheel > --- UTILITY ---------- Heat Sink Improved Terrain Scanner > --- WEAPON ----------- Assault Rifle Light Assault Rifle > --- INVENTORY -------- (None) [Rating: 9] Favorites ----------- Power Light Ion Engine Engine Light Ion Engine Propulsion Aluminum Leg Leg Aluminum Leg Wheel Wheel Flight Unit Flight Unit Utility Improved Terrain Scanner Device Improved Terrain Scanner Storage Small Matter Pod Weapon Light Assault Rifle Energy Gun Small Laser Ballistic Gun Light Assault Rifle Special Melee Weapon Datajack Build | -11 -10 ------- Run | Yrd Mat Slots Evolved . | . . Power . | . . Propulsion . | . . Utility . | . . Weapon . | . . Parts Attached 18 | 8 10 Power 2 | 1 1 Engine 2 | 1 1 Core . | . . Reactor . | . . Propulsion 8 | 2 6 Treads . | . . Leg 4 | . 4 Wheel 2 | 2 . Hover . | . . Flight 2 | . 2 Utility 3 | 3 . Device 2 | 2 . Storage 1 | 1 . Processor . | . . Hackware . | . . Protection . | . . Artifact . | . . Weapon 5 | 2 3 Energy Gun 1 | . 1 Energy Cannon . | . . Ballistic Gun 3 | 2 1 Ballistic Cannon . | . . Launcher . | . . Special Weapon . | . . Impact Weapon . | . . Slashing Weapon . | . . Piercing Weapon . | . . Special Melee Weapon 1 | . 1 Unidentified Prototypes . | . . Parts Lost 7 | . 7 Power 1 | . 1 Propulsion 3 | . 3 Utility 1 | . 1 Weapon 2 | . 2 Highest Loss Streak 7 | . 7 To Critical Strikes . | . . Average Slot Usage (%) 64 | . 64 Engine 5 | . 5 Leg 13 | . 13 Wheel 7 | . 7 Flight 1 | . 1 Device 20 | . 20 Energy Gun 2 | . 2 Ballistic Gun 6 | . 6 Special Melee Weapon 5 | . 5 Peak Build Rating 9 | 9 9 Average Rating 6 | 5 6 On Entrance 4 | . 9 Naked Turns . | . . Heaviest Build 8 | 8 8 Greatest Support 20 | 20 20 Greatest Overweight (x) 2 | . 2 Average Overweight (x) . | . . Largest Inventory Capacity 5 | 5 5 Average Capacity 5 | 5 5 Most Carried 2 | . 2 Average Carried . | . 1 Final Capacity 5 | 5 5 Final Carried 2 | . 2 Class Distribution -------------------- 85% | Mutant 14% | Scavenger-Mutant Dominant Class ---------------- Mutant | -10/Materials Resources | -11 -10 ----------- Run | Yrd Mat Matter Collected 433 | 342 91 Remotely . | . . Salvage Created 183 | 88 95 Parts 12 | 6 6 Haulers Intercepted . | . . Recyclers Shooed . | . . Parts Field Recycled . | . . Retrieved Matter . | . . Parts Self-Destructed . | . . Prevented . | . . Kills | -11 -10 ------- Run | Yrd Mat Combat Hostiles Destroyed 4 | 1 3 Melee 3 | . 3 Guns 1 | 1 . Classes Destroyed 3 | 3 . Worker 1 | 1 . Tunneler 1 | 1 . Grunt 4 | 1 3 Best Kill Streak 2 | 1 2 Combat Bots Only 2 | 1 2 Max Kills in Single Turn 1 | 1 1 Gunslinging . | . . Exploded . | . . Melee 1 | . 1 Uniques/NPCs Destroyed . | . . Combat | -11 -10 -------- Run | Yrd Mat Hostile Shots Fired 77 | 2 75 Missed 21 | 1 20 Damage Taken 670 | 10 660 Core 259 | . 259 Absorbed by Shields . | . . Core Remaining (%) 100 | 100 . Volleys Fired 29 | 8 21 Largest 2 | 2 1 Hottest 40 | 40 40 Shots Fired 37 | 16 21 Gun 37 | 16 21 Cannon . | . . Launcher . | . . Special . | . . Kinetic 35 | 16 19 Thermal 2 | . 2 Explosive . | . . Electromagnetic . | . . Robot Hit Streak 6 | 6 2 Robot Miss Streak 4 | 3 4 Penetration Max . | . . Secondary Targets . | . . Shots Hit Robots 23 | 11 12 Core Hits 23 | 5 18 Critical Kills . | . . Critical Parts Destroyed . | . . Critical Strikes . | . . Melee Attacks 2 | . 2 Impact . | . . Slashing . | . . Piercing . | . . Sneak Attacks 2 | . 2 Combat Hostiles . | . . Follow-up Attacks . | . . Damage Inflicted 261 | 106 155 Guns 202 | 106 96 Cannons . | . . Explosions . | . . Melee . | . . Ramming 59 | . 59 Kinetic 191 | 106 85 Thermal 11 | . 11 Explosive . | . . Electromagnetic . | . . Impact . | . . Slashing . | . . Piercing . | . . Highest Corruption . | . . Average Corruption . | . . Corruption Purged . | . . Corruption Blocked . | . . Overload Shots . | . . Overflow Damage . | . . Projectiles . | . . Explosions . | . . Melee . | . . Knockbacks 1 | . 1 Impact 1 | . 1 Kinetic . | . . Secondary . | . . Self-Inflicted Damage 13 | . 13 Shots . | . . Rammed 10 | . 10 Targets Rammed 28 | . 28 Kicked 18 | . 18 Crushed . | . . Highest Temperature . | . . Average Temperature . | . . Received Heat Transfer 366 | 6 360 Siege Activations . | . . Robots Corrupted . | . . Combat Hostiles . | . . Parts Fried . | . . Impact Corruptions . | . . Robots Melted . | . . Combat Hostiles . | . . Parts Melted . | . . Heat Transferred 25 | . 25 Parts Sabotaged . | . . Parts Stolen . | . . Parts Stripped . | . . Power Chain Reactions . | . . Alert | -11 -10 ------- Run | Yrd Mat Peak Influence 56 | 30 56 Initial 19 | . 19 Average 26 | 12 29 Maximum Alert Level . | . . Low Security (%) 100 | 100 100 Level 1 . | . . Level 2 . | . . Level 3 . | . . Level 4 . | . . Level 5 . | . . High Security . | . . Max Security . | . . Squads Dispatched . | . . Investigation . | . . Extermination . | . . Reinforcement . | . . Assault . | . . Garrison . | . . Intercept . | . . Searches Triggered . | . . Construction Impeded . | . . Haulers Reinforced . | . . Active Scanning Responses . | . . Cargo Convoy Interrupts . | . . Stealth | -11 -10 --------- Run | Yrd Mat Distress Signals 1 | . 1 Communications Jammed . | . . Distress Signals . | . . Times Spotted 12 | 1 11 Peak Tracking Total 6 | 1 6 Tactical Retreats . | . . Traps | -11 -10 ------- Run | Yrd Mat Traps Triggered 1 | . 1 Indirectly . | . . Trap Hack Attempts . | . . Triggered . | . . Disarmed . | . . Reprogrammed . | . . Reused . | . . Traps Extracted . | . . Installed . | . . Triggered . | . . Machines | -11 -10 ---------- Run | Yrd Mat Machines Disabled . | . . Max in Single Turn . | . . Machines Repaired . | . . Machines Dismantled . | . . Machines Sabotaged . | . . Overloaded Fab Kills . | . . Hacking | -11 -10 --------- Run | Yrd Mat Machines Accessed 2 | . 2 Terminals 1 | . 1 Fabricators . | . . Repair Stations 1 | . 1 Recycling Units . | . . Scanalyzers . | . . Garrison Access . | . . Total Hacks 5 | . 5 Successful 4 | . 4 Failed 1 | . 1 Catastrophic . | . . Database Lockouts . | . . Manual 1 | . 1 Terminals 4 | . 4 Fabricators . | . . Repair Stations 1 | . 1 Recycling Units . | . . Scanalyzers . | . . Garrison Access . | . . Terminal Hacks 3 | . 3 Prototype ID Bank 1 | . 1 Alert Level 1 | . 1 Patrol Status 1 | . 1 Fabricator Hacks . | . . Repair Station Hacks 1 | . 1 Scan Component 1 | . 1 Recycling Unit Hacks . | . . Scanalyzer . | . . Garrison Access Hacks . | . . Unauthorized Hacks . | . . Terminals . | . . Fabricators . | . . Repair Stations . | . . Recycling Units . | . . Scanalyzers . | . . Garrison Access . | . . Data Cores Recovered . | . . Used . | . . Hacking Detections 2 | . 2 Full Trace Events 1 | . 1 Feedback Events . | . . Feedback Blocked . | . . Robot Schematics Acquired . | . . Robots Built . | . . Authchips . | . . Time . | . . Total Robot Build Rating . | . . Part Schematics Acquired . | . . Parts Built . | . . Authchips . | . . Time . | . . Total Part Build Rating . | . . Parts Repaired . | . . Time . | . . Parts Recycled . | . . Recycled Matter . | . . Retrieved Matter . | . . Retrieved Components . | . . Parts Scanalyzed . | . . Part Schematics Acquired . | . . Parts Damaged . | . . Bothacking | -11 -10 ------------ Run | Yrd Mat Used RIF Installer . | . . Robots Hacked 1 | . 1 Non-combat 1 | . 1 Combat . | . . Robot Hacks Applied 2 | . 2 parse_system 1 | . 1 no_distress 1 | . 1 Relay Couplers Released . | . . Fabnet Peak Effective % . | . . Robots Rewired . | . . Allies Hacked . | . . Hacks Repelled . | . . Allies | -11 -10 -------- Run | Yrd Mat Total Allies . | . . Largest Group . | . . Highest-Rated Group . | . . Highest-Rated Ally . | . . Total Orders . | . . Ally Attacks . | . . Total Damage . | . . Kills . | . . Allies Corrupted . | . . Allies Melted . | . . Intel | -11 -10 ------- Run | Yrd Mat Robot Analysis Total . | . . Derelict Logs Recovered . | . . Drone Launches . | . . Drone Recoveries . | . . Exploration | -11 -10 ------------- Run | Yrd Mat Turns Passed 641 | 126 515 Spaces Moved 461 | 124 337 Core 95 | 24 71 Treads . | . . Legs 166 | . 166 Wheels 149 | 100 49 Hover . | . . Flight 51 | . 51 Fastest Speed 45 | 50 45 Average Speed 106 | 74 117 Slowest Speed 150 | 80 150 Overloaded Moves . | . . Propulsion Burnouts . | . . Robots Hopped . | . . Cave-ins Triggered . | . . Exploration Rate (%) 20 | 6 35 Regions Visited 1 Branch Regions . Pre-discovered Areas . | . . Known Exits Taken . | . . Unknown Exits Taken 1 | 1 . Scrap Searched . | . . Spaces Dug . | . . Terrain Destroyed . | . . Melee . | . . Projectile . | . . AOE . | . . Terrain Rammed . | . . Walls Destroyed . | . . Machines Disabled . | . . Actions | -11 -10 --------- Run | Yrd Mat Total 568 | 139 429 Wait 29 | . 29 Move 460 | 123 337 Hop . | . . Pick Up . | . . Fast Attach 15 | 7 8 Attach . | . . Detach 2 | . 2 Swap 3 | 1 2 Drop . | . . Fire 29 | 8 21 Melee 2 | . 2 Ram 10 | . 10 Kick 18 | . 18 Crush . | . . Escape Stasis . | . . Rewire . | . . Trap . | . . Miscellaneous . | . . Route ------- -11/Scrapyard -10/Materials History --------- Turn | Location | Event 2 | -11/Scrapyard | Met Revision 17 66 | -11/Scrapyard | Discovered new exit (range 8) 127 | -11/Scrapyard | Entered Materials 313 | -10/Materials | Build established: Mutant 368 | -10/Materials | Core integrity fell below 50% 410 | -10/Materials | Core integrity fell below 20% 438 | -10/Materials | Lost 7 parts (1p3n1u2w) 642 | -10/Materials | Destroyed by G-34 Mercenary with Small Laser Last Messages --------------- Current Alert Level: Low Security K-01 Serf cleans the Repair Station. K-01 Serf collects debris. To regain energy, simply wait via the mouse wheel, '.', or KP5. Also make sure your per-turn energy generation is a net positive, and consider deactivating power-draining parts if not. U-05 Engineer works on Atomic Centrifuge. K-01 Serf collects debris. U-05 Engineer works on Atomic Centrifuge. K-01 Serf cleans the Atomic Centrifuge. K-01 Serf collects debris. U-05 Engineer works on Atomic Centrifuge. K-01 Serf collects debris. U-05 Engineer works on Atomic Centrifuge. K-01 Serf collects debris. U-05 Engineer works on Atomic Centrifuge. U-05 Engineer completes Atomic Centrifuge. Kicked W-16 Scout out of the way. Map ----- +----------------------------------------------------+ | | | | | | | | | | | ???????#???###############?????############ | | ???????????# #?????# | | ???????????# ####### """ "" | | ???????????# + % + """ "" | | ???????????# ####### """ "" | | ???????????# #?????# | | ???????????# #?????# | | ??????????########+########????#######+#### | | ?????????????#??# ?? +? | | ???????????#????# #######????#??#?# # " | | ????????????????# #?#????#?######?# # " | | ????????????????# #?#??????# #??# # " | | ????????????????# #????????# #?## # | | ?????????? ??#### #????????# ##?# #? | | ?????????????+ #????????# #### ### | | ?????????????#### #????????# | | ????????????????# g#??? ???## | | ??????????????### ##??????+ | | ???????# ##### !##+###?############### | | ???????+ #?????#?# """ | | ???????# @ #???????# "T" | | ???????# #??? ???# | | ???????######+## ## #???????# | | ???????????????#######? #????? ?# | | ???????????????????????? / ???? ?# """ | | ??????????????????Y????? # "????# """ | | ????????????????????????? #? "?? # """ | | ??????????????????????????#? ???# | | ??????????????????????????????????######### | | ??????????????????????????? // | | ??????????????????????????? / | | ??????????????????????????? | | ????????????????????????????## | | ?????????????????????????????# | | ?????????????????????????????# [[[ | | ?????????????????????????????# [[[ | | ?????????????????????????????# [[ | | ?????????????????????????????? | | ?????????????????????????????? | | ??????????????????????????????? ########## | | ??????????????????????????????? ??????????? | | ??????????????????????????????????????????? | | ??????????????????????????????????????????? | | ??????????????????????????????????????????? | | ??????????????????????????????????????????? | +----------------------------------------------------+ Best States ------------- Heat Dissipation 35 Energy Generation 10 Energy Capacity 125 Matter Stores 346 Matter Capacity 350 Sight Range 16 Terrain Scan Range 16 Terrain Scan Density 10 Evasion (%) 55 Item Schematics ----------------- None Robot Schematics ------------------ None Fabricated ------------ Nothing Alien Tech Used ----------------- None Achievements -------------- Fist Fight Challenges ------------ None Game ------ Seed SapperMassStripper Manual? 0 Play Time 00:11:41 Cumulative 0.4 hours Start 2025.03.03 @ 16:07:49 End 2025.03.03 @ 16:16:58 Sessions 1 Manual Loads 0 Difficulty Rogue Special Mode None Game No. 2 Rogue 2 Adventurer 0 Explorer 0 Win Type - Total 0 Types 0/0/0/0/0/0/0/0/0 Lore% 0 Gallery% 1 Achievement% 1 Wizard Run 0 Options --------- Layout 2 ASCII 0 Keyboard 1 Movement Vi Keybinds 0 Fullscreen 1 Font 28/SmallcapsGlow Map View 25x26 Zoom Use 100% Tactical HUD 0 Map Filters NONE Filters NONE Steam 1 RUN: a78b7949-679d-4f74-86dd-6d8365332b6e